lending/lending_fUSD_20240202
["ID","MTS","AMOUNT","RATE_DAILY","PERIOD"]
[313163676,1706841412038,2509.74327146,0.0002,2]
[313163677,1706841430040,2509.74327146,0.0002,2]
[313163678,1706841436992,500.0,0.00021917,2]
[313163679,1706841446043,2509.74327146,0.0002,2]
[313163680,1706841463422,250.0,0.00022,2]
[313163681,1706841464177,2509.74327146,0.0002,2]
[313163682,1706841464716,250.0,0.00022274,2]
[313163683,1706841484057,2509.74327146,0.0002,2]
[313163684,1706841490709,243.97,0.00021917,2]
[313163686,1706841498055,2509.74327146,0.0002,2]
[313163687,1706841520061,2509.74327146,0.0002,2]
[313163688,1706841542069,1295.81754322,0.0002,2]
[313163689,1706841585706,159.24,0.00020004,2]
[313163690,1706841586013,159.24,0.00022268,2]
[313163691,1706841587455,2000.0,0.00021922,2]
[313163692,1706841600289,242.19,0.00022082,2]
[313163693,1706841600498,242.19,0.00022142,2]
[313163694,1706841600712,242.19,0.00022203,2]
[313163695,1706841600936,242.19,0.00022263,2]
[313163696,1706841601176,242.19,0.00022324,2]
[313163697,1706841601405,242.19,0.00022385,2]
[313163698,1706841601631,242.19,0.00022445,2]
[313163699,1706841692450,-171.96197771,0.00022501,2]
[313163700,1706841710169,-254.71308364,0.00022501,2]
[313163701,1706841712251,-150.0,0.00022501,2]
[313163702,1706841713213,-150.0,0.00022501,2]
[313163703,1706841714260,-150.0,0.00022501,2]
[313163704,1706841715775,-150.0,0.00022501,2]
[313163705,1706841716550,-150.0,0.00022501,2]
[313163706,1706841716932,-150.0,0.00022501,2]
[313163707,1706841718151,-150.0,0.00022501,2]
[313163708,1706841720331,420.65248789,0.000225,2]
[313163709,1706841735815,151.26879161,0.00022,2]
[313163710,1706841738337,420.65248789,0.0002249,2]
[313163711,1706841738928,302.22519051,0.000225,2]
[313163712,1706841754600,420.65248789,0.0002249,2]
[313163713,1706841764509,171.96197771,0.000225,2]
[313163714,1706841764797,-101.00619667,0.00022501,2]
[313163715,1706841764818,-48.99380333,0.00022501,2]
[313163716,1706841770350,192.51437954,0.0002249,2]
[313163717,1706841788179,150.90986219,0.00022,2]
[313163718,1706841811167,19057.21734432,0.000225,2]
[313163719,1706841814183,3712.94,0.00021835,2]
[313163720,1706841837001,171.96197771,0.00022499,2]
[313163721,1706841840189,3339.83092672,0.00022499,2]
[313163722,1706841869338,176.85,0.00021794,2]
[313163723,1706841871017,188.91007004,0.00022342,2]
[313163724,1706841874632,509.37361083,0.00022,2]
[313163725,1706841905088,198.98,0.00021825,10]
[313163726,1706841908911,155.44,0.00021825,2]
[313163727,1706841963644,804.82,0.00021831,2]
[313163728,1706842030039,157.42,0.00021963,2]
[313163729,1706842030236,157.42,0.00022023,2]
[313163730,1706842030433,157.42,0.00022083,2]
[313163731,1706842030641,157.42,0.00022144,2]
[313163732,1706842030863,157.42,0.00022204,2]
[313163733,1706842031250,157.42,0.00022264,2]
[313163734,1706842031476,157.42,0.00022324,2]
[313163735,1706842031699,157.42,0.00022385,2]
[313163736,1706842031905,157.42,0.00022445,2]
[313163737,1706842118947,4674.24314198,0.000232,30]
[313163738,1706842140053,35699.0,0.00023,30]
[313163753,1706842231903,-807.51397891,0.000225,2]
[313163754,1706842231915,-880.70736346,0.000225,2]
[313163755,1706842231959,-384.46543555,0.000225,2]
[313163756,1706842231971,-17045.63354284,0.000225,2]
[313163757,1706842231981,-2998.82566332,0.000225,2]
[313163758,1706842231991,-171.96197771,0.000225,2]
[313163759,1706842232000,-304.44970395,0.00022502,2]
[313163760,1706842232010,-1331.0120102,0.00022502,2]
[313163761,1706842232020,-157.42,0.00022505,2]
[313163762,1706842232030,-831.76136269,0.00022544,2]
[313163763,1706842232039,-21374.26701721,0.00022545,2]
[313163764,1706842232048,-253.46879313,0.00022548,2]
[313163765,1706842232058,-157.42,0.00022565,2]
[313163766,1706842232067,-157.42,0.00022626,2]
[313163767,1706842232077,-9569.99,0.00022626,2]
[313163768,1706842232085,-9999.99,0.00022626,2]
[313163769,1706842232095,-157.42,0.00022686,2]
[313163770,1706842232104,-6603.23,0.00022686,2]
[313163771,1706842232114,-412.09,0.00022686,2]
[313163772,1706842232123,-150.99,0.00022686,2]
[313163773,1706842232133,-499.99,0.00022686,2]
[313163774,1706842232142,-2500.0,0.00022693,2]
[313163775,1706842232151,-2987.5543,0.00022694,2]
[313163776,1706842232161,-1000.0,0.00022694,2]
[313163777,1706842232170,-6635.1792,0.00022694,2]
[313163778,1706842232179,-2118.7814,0.00022694,2]
[313163779,1706842232188,-2500.0,0.00022694,2]
[313163780,1706842232197,-157.42,0.00022746,2]
[313163781,1706842232207,-179.67378527,0.00022784,2]
[313163782,1706842232216,-274.67633998,0.00022792,2]
[313163783,1706842232226,-4282.43045022,0.00022793,2]
[313163784,1706842232235,-1067.77060272,0.00022793,2]
[313163785,1706842232244,-4864.63251622,0.00022793,2]
[313163786,1706842232253,-5373.46258179,0.00022793,2]
[313163787,1706842232262,-950.25165029,0.00022793,2]
[313163788,1706842232271,-1669.71449104,0.00022794,2]
[313163789,1706842232280,-94244.14558151,0.00022794,2]
[313163790,1706842232299,-562.36646716,0.00022794,2]
[313163791,1706842232310,-2444.74560792,0.00022794,2]
[313163792,1706842232322,-457.85527997,0.00022794,2]
[313163793,1706842233303,-429.32052285,0.00022794,2]
[313163799,1706842238669,-578.96509772,0.00022502,2]
[313163800,1706842238681,-37358.50887027,0.00022502,2]
[313163801,1706842238692,-9968.72252248,0.00022502,2]
[313163802,1706842238702,-573390.2233883,0.00022794,2]
[313163803,1706842238711,-157.42,0.00022806,2]
[313163804,1706842238720,-174.36,0.00022808,2]
[313163805,1706842238729,-157.42,0.00022867,2]
[313163806,1706842238739,-800.0,0.00022877,2]
[313163807,1706842238748,-160.52904751,0.000229,2]
[313163808,1706842238757,-394.299,0.000229,2]
[313163809,1706842238766,-1083.77440002,0.000229,2]
[313163810,1706842238775,-198.04733739,0.000229,2]
[313163811,1706842238784,-411.23,0.00022904,2]
[313163812,1706842238793,-157.42,0.00022927,2]
[313163813,1706842238802,-3639.38922442,0.00022986,5]
[313163814,1706842238812,-157.42,0.00022987,2]
[313163815,1706842238821,-179.67378527,0.0002299,2]
[313163816,1706842238830,-179.67378527,0.0002299,2]
[313163817,1706842238840,-1067.67975817,0.00022995,2]
[313163818,1706842238849,-388.21422797,0.00022997,2]
[313163819,1706842238858,-2159.8232507,0.00022997,2]
[313163820,1706842238868,-990.60210898,0.00022997,2]
[313163821,1706842238877,-1186.74735792,0.00022997,2]
[313163822,1706842238886,-2077.9717404,0.00022997,2]
[313163823,1706842238897,-1117.11729301,0.00022997,2]
[313163824,1706842238906,-1298.61977118,0.00022997,2]
[313163825,1706842238915,-2879.92938434,0.00022997,2]
[313163826,1706842238925,-17983.93190655,0.00022998,2]
[313163827,1706842238934,-3833566.31992783,0.00023,2]
[313163828,1706842238945,-795.85878601,0.00023,2]
[313163843,1706842239719,-3954.363667,0.00023,2]
[313163844,1706842239834,-416.64948551,0.00023,2]
[313163853,1706842240515,-15653.84,0.00023,2]
[313163871,1706842243702,-1122.85920386,0.00023,2]
[313163873,1706842243714,-463.99311828,0.00023,2]
[313163875,1706842243725,-7159.16547883,0.00023,2]
[313163885,1706842243812,-736.45,0.00023,2]
[313163888,1706842243823,-627.52602902,0.00023,2]
[313163893,1706842243868,-325.39435214,0.00023,2]
[313163900,1706842243925,-686.8794022,0.00023,2]
[313163903,1706842243937,-340.51000542,0.00023,2]
[313163909,1706842244066,-520.14303817,0.00023,2]
[313163910,1706842244077,-2130.34773654,0.00023,2]
[313163931,1706842245915,-405.25586882,0.000229,2]
[313163933,1706842245925,-155.98534132,0.00023,2]
[313163961,1706842254459,-71484.04730222,0.00023,2]
[313163962,1706842254472,-194410.44130464,0.00023,2]
[313163963,1706842254482,-2000.0,0.00023,2]
[313163964,1706842254491,-200.0,0.00023,2]
[313163965,1706842254500,-237.44,0.00023,2]
[313163966,1706842254510,-157.42,0.00023047,2]
[313163967,1706842254519,-1185.40056266,0.00023064,2]
[313163968,1706842254528,-157.42,0.00023107,2]
[313163969,1706842254537,-354.25483082,0.0002313,2]
[313163970,1706842254547,-257.54,0.00023205,2]
[313163971,1706842254557,-2000.0,0.0002323,2]
[313163972,1706842254566,-200.0,0.0002323,2]
[313163973,1706842254575,-264.20026897,0.000241,2]
[313163974,1706842254585,-167.0,0.00024297,2]
[313163975,1706842254594,-177.0462375,0.000243,2]
[313163976,1706842254604,-3214.96,0.00024384,2]
[313163977,1706842254613,-804.82,0.0002456,2]
[313163978,1706842254623,-155.44,0.00024565,2]
[313163979,1706842254632,-257.54,0.00024575,2]
[313163980,1706842254641,-243.97,0.00024657,2]
[313163981,1706842254650,-3563.6,0.00024658,2]
[313163982,1706842254659,-250.0,0.00024658,2]
[313163983,1706842254669,-1904.97840411,0.00025,2]
[313163984,1706842254678,-450.0,0.00025,3]
[313163985,1706842254688,-936.6209496,0.00025,2]
[313163986,1706842254697,-200.0,0.00025546,2]
[313163987,1706842254707,-5814.0,0.000257,2]
[313163988,1706842254716,-2935.0,0.000257,2]
[313163989,1706842254726,-150.0,0.00026079,2]
[313163990,1706842254735,-500.0,0.00027,2]
[313163991,1706842254744,-152.88249464,0.00027077,2]
[313163992,1706842254753,-323.93773457,0.00027078,2]
[313163993,1706842254763,-804.82,0.00027289,2]
[313163994,1706842254774,-155.44,0.00027305,2]
[313163995,1706842254783,-243.97,0.00027397,2]
[313163996,1706842254792,-155.28,0.00027397,2]
[313163997,1706842254802,-161.3,0.00027397,2]
[313163998,1706842254925,-185.57,0.00027397,2]
[313163999,1706842254935,-507.11873367,0.000274,2]
[313164000,1706842254944,-155.28,0.0002758,2]
[313164001,1706842254953,-155.28,0.00027763,2]
[313164002,1706842254962,-155.28,0.00027945,2]
[313164003,1706842254971,-155.28,0.00028128,2]
[313164004,1706842254979,-1500.0,0.00028202,2]
[313164005,1706842254989,-150.0,0.00028231,2]
[313164006,1706842254998,-150.0,0.00028232,2]
[313164007,1706842255007,-150.0,0.00028237,2]
[313164008,1706842255016,-150.0,0.0002824,2]
[313164009,1706842255024,-191.68014485,0.00028242,2]
[313164010,1706842255034,-332.43761977,0.00028249,2]
[313164011,1706842255042,-150.0,0.0002825,2]
[313164012,1706842255051,-150.0,0.00028252,2]
[313164013,1706842255060,-150.0,0.00028258,2]
[313164014,1706842255069,-150.0,0.0002826,2]
[313164015,1706842255078,-150.0,0.00028269,2]
[313164016,1706842255087,-150.0,0.00028272,2]
[313164017,1706842255096,-200.0,0.00028274,3]
[313164018,1706842255105,-800.0,0.00028274,2]
[313164019,1706842255114,-800.0,0.00028275,2]
[313164020,1706842255123,-800.0,0.00028275,2]
[313164021,1706842255132,-150.0,0.00028277,2]
[313164022,1706842255141,-150.0,0.0002828,2]
[313164023,1706842255150,-150.0,0.00028289,2]
[313164024,1706842255159,-150.0,0.00028289,2]
[313164025,1706842255169,-150.0,0.00028295,2]
[313164026,1706842255178,-150.0,0.00028297,2]
[313164027,1706842255187,-300.0,0.00028301,2]
[313164028,1706842255196,-150.0,0.00028303,2]
[313164029,1706842255205,-150.0,0.00028309,2]
[313164030,1706842255214,-155.28,0.00028311,2]
[313164031,1706842255223,-300.0,0.00028315,2]
[313164032,1706842255232,-150.0,0.00028316,2]
[313164033,1706842255241,-150.0,0.00028317,2]
[313164034,1706842255250,-150.0,0.00028317,2]
[313164035,1706842255259,-150.0,0.00028318,2]
[313164036,1706842255268,-150.0,0.00028322,2]
[313164037,1706842255277,-150.0,0.00028324,2]
[313164038,1706842255286,-150.0,0.00028324,2]
[313164039,1706842255295,-150.0,0.00028326,2]
[313164040,1706842255305,-150.0,0.00028329,2]
[313164041,1706842255314,-152.92664003,0.00028332,2]
[313164042,1706842255323,-150.0,0.00028334,2]
[313164043,1706842255332,-150.0,0.00028338,2]
[313164044,1706842255341,-150.0,0.00028342,2]
[313164045,1706842255350,-150.0,0.00028344,2]
[313164046,1706842255358,-150.0,0.00028344,2]
[313164047,1706842255370,-150.0,0.00028345,2]
[313164048,1706842255378,-150.0,0.00028346,2]
[313164049,1706842255388,-152.70598456,0.00028357,2]
[313164050,1706842255397,-1000.0,0.0002836,2]
[313164051,1706842255406,-1000.0,0.0002836,2]
[313164052,1706842255415,-1000.0,0.0002836,2]
[313164053,1706842255425,-1000.0,0.0002836,2]
[313164054,1706842255433,-1000.0,0.0002836,2]
[313164055,1706842255443,-1000.0,0.0002836,2]
[313164056,1706842255452,-1000.0,0.0002836,2]
[313164057,1706842255461,-1000.0,0.0002836,2]
[313164058,1706842255470,-1000.0,0.0002836,2]
[313164059,1706842255479,-1000.0,0.0002836,2]
[313164060,1706842255488,-1000.0,0.0002836,2]
[313164061,1706842255497,-1000.0,0.0002836,2]
[313164062,1706842255506,-1000.0,0.0002836,2]
[313164063,1706842255515,-1000.0,0.0002836,2]
[313164064,1706842255524,-1000.0,0.0002836,2]
[313164065,1706842255535,-1000.0,0.0002836,2]
[313164066,1706842255545,-1000.0,0.0002836,2]
[313164067,1706842255554,-1000.0,0.0002836,2]
[313164068,1706842255563,-1000.0,0.0002836,2]
[313164069,1706842255572,-1000.0,0.0002836,2]
[313164070,1706842255581,-1000.0,0.0002836,2]
[313164071,1706842255590,-1111.1113,0.0002836,2]
[313164072,1706842255600,-500.0,0.0002836,2]
[313164073,1706842255609,-500.0,0.0002836,2]
[313164074,1706842255618,-500.0,0.0002836,2]
[313164075,1706842255627,-500.0,0.0002836,2]
[313164076,1706842255636,-500.0,0.0002836,2]
[313164077,1706842255644,-500.0,0.0002836,2]
[313164078,1706842255653,-507.295,0.0002836,2]
[313164079,1706842255663,-249.81086061,0.00028361,2]
[313164080,1706842255674,-150.0,0.00028367,2]
[313164081,1706842255684,-150.0,0.00028367,2]
[313164082,1706842255693,-1500.0,0.00028369,2]
[313164083,1706842255702,-150.0,0.00028378,2]
[313164084,1706842255711,-150.0,0.00028379,2]
[313164085,1706842255721,-150.0,0.00028379,2]
[313164086,1706842255730,-1500.0,0.0002838,2]
[313164087,1706842255739,-150.0,0.00028384,2]
[313164088,1706842255748,-306.62791142,0.00028387,2]
[313164089,1706842255758,-150.0,0.00028389,2]
[313164090,1706842255767,-150.0,0.00028389,2]
[313164091,1706842255776,-150.0,0.00028396,2]
[313164092,1706842255786,-150.0,0.00028397,2]
[313164093,1706842255795,-150.0,0.00028401,2]
[313164094,1706842255804,-150.0,0.00028403,2]
[313164095,1706842255814,-150.0,0.00028404,2]
[313164096,1706842255823,-150.0,0.00028406,2]
[313164097,1706842255833,-150.0,0.00028406,2]
[313164098,1706842255842,-1500.0,0.00028407,2]
[313164099,1706842255852,-150.0,0.00028408,2]
[313164100,1706842255861,-150.0,0.00028411,2]
[313164101,1706842255870,-479.0,0.00028412,5]
[313164102,1706842255879,-150.0,0.00028412,2]
[313164103,1706842255888,-150.0,0.00028419,2]
[313164104,1706842255897,-150.0,0.00028423,2]
[313164105,1706842255906,-150.0,0.00028425,2]
[313164106,1706842255916,-150.0,0.00028425,2]
[313164107,1706842255926,-150.0,0.00028425,2]
[313164108,1706842255935,-1500.0,0.00028425,2]
[313164109,1706842255944,-150.0,0.0002843,2]
[313164110,1706842255953,-150.0,0.00028431,2]
[313164111,1706842255962,-150.0,0.00028443,2]
[313164112,1706842255971,-150.0,0.00028444,2]
[313164113,1706842255980,-150.0,0.00028446,2]
[313164114,1706842255989,-150.0,0.0002845,2]
[313164115,1706842255998,-150.0,0.00028451,2]
[313164116,1706842256008,-150.0,0.00028452,2]
[313164117,1706842256017,-150.0,0.00028452,2]
[313164118,1706842256026,-150.0,0.00028459,2]
[313164119,1706842256035,-150.0,0.00028461,2]
[313164120,1706842256044,-300.0,0.00028464,2]
[313164121,1706842256054,-150.0,0.00028465,2]
[313164122,1706842256063,-150.0,0.00028465,2]
[313164123,1706842256072,-150.0,0.00028467,2]
[313164124,1706842256082,-150.0,0.0002847,2]
[313164125,1706842256091,-150.0,0.00028473,2]
[313164126,1706842256100,-150.0,0.00028485,2]
[313164127,1706842256110,-150.0,0.00028485,2]
[313164128,1706842256119,-150.0,0.00028487,2]
[313164129,1706842256128,-150.0,0.00028487,2]
[313164130,1706842256138,-155.28,0.00028493,2]
[313164131,1706842256147,-150.0,0.00028496,2]
[313164132,1706842256156,-500.0,0.000285,2]
[313164133,1706842256169,-319.23915081,0.00028501,2]
[313164134,1706842256182,-3307.40270442,0.00028502,2]
[313164135,1706842256195,-150.01,0.00028502,2]
[313164136,1706842256207,-863.57899265,0.00028502,2]
[313164137,1706842256220,-510.86722943,0.00028503,2]
[313164138,1706842256231,-200.0,0.00028503,2]
[313164139,1706842256242,-155.0,0.00028503,2]
[313164140,1706842256252,-288.36685,0.00028503,2]
[313164141,1706842256265,-202.9908377,0.00028503,2]
[313164142,1706842256276,-84932.0992158,0.00028585,2]
[313164143,1706842256289,-3376.08,0.00028664,2]
[313164144,1706842256301,-155.28,0.00028676,2]
[313164145,1706842256314,-185.57,0.00028767,2]
[313164146,1706842256326,-3376.08,0.00028822,2]
[313164147,1706842256337,-155.28,0.00028859,2]
[313164148,1706842256350,-155.28,0.00029041,2]
[313164149,1706842256365,-393.25895794,0.00029168,15]
[313164150,1706842256375,-155.28,0.00029224,2]
[313164151,1706842256385,-155.28,0.00029406,2]
[313164152,1706842256398,-815.397852,0.000295,2]
[313164153,1706842256410,-155.28,0.00029589,2]
[313164154,1706842256424,-155.28,0.00029772,2]
[313164155,1706842256437,-155.28,0.00029954,2]
[313164156,1706842256449,-418.421,0.00029968,2]
[313164157,1706842256460,-2433.0,0.00029968,2]
[313164158,1706842256471,-1385.046,0.00029968,2]
[313164159,1706842256482,-451.0,0.00029968,2]
[313164160,1706842256494,-2867.0,0.00029968,2]
[313164161,1706842256505,-856.0,0.00029968,2]
[313164162,1706842256515,-977.818,0.00029968,2]
[313164163,1706842256525,-1889.563,0.00029968,2]
[313164164,1706842256535,-1250.0,0.00029968,2]
[313164165,1706842256548,-219.677,0.00029968,2]
[313164166,1706842256559,-396.703,0.00029968,2]
[313164167,1706842256571,-537.879,0.00029968,2]
[313164168,1706842256583,-636.419,0.00029968,2]
[313164169,1706842256595,-240.767,0.00029968,2]
[313164170,1706842256607,-1090.827,0.00029968,2]
[313164171,1706842256617,-2003.331,0.00029968,2]
[313164172,1706842256627,-453.872,0.00029968,2]
[313164173,1706842256640,-1708.498,0.00029968,2]
[313164174,1706842256651,-150.0,0.00029968,2]
[313164175,1706842256662,-150.0,0.00029968,2]
[313164176,1706842256675,-150.26,0.00029968,2]
[313164177,1706842256687,-47862.938149,0.00029999,2]
[313164178,1706842256700,-155.0,0.0003,2]
[313164179,1706842256712,-253.33549863,0.0003,2]
[313164180,1706842256724,-694.13273302,0.0003,2]
[313164181,1706842256736,-1796.88613043,0.0003,30]
[313164182,1706842256748,-9669.73208063,0.0003,2]
[313164183,1706842256758,-465.61611296,0.0003,4]
[313164184,1706842256768,-892.78121,0.0003,2]
[313164185,1706842256778,-892.78122,0.0003,2]
[313164186,1706842256788,-892.78122,0.0003,2]
[313164187,1706842256800,-892.78122,0.0003,2]
[313164188,1706842256812,-892.78122,0.0003,2]
[313164189,1706842256823,-892.78122,0.0003,2]
[313164190,1706842256834,-500.0,0.0003,2]
[313164191,1706842256844,-804.82,0.00030017,2]
[313164192,1706842256855,-155.44,0.00030044,2]
[313164193,1706842256866,-243.97,0.00030136,2]
[313164194,1706842256877,-185.57,0.00030137,2]
[313164195,1706842256887,-152.13,0.00030137,2]
[313164196,1706842256897,-155.28,0.00030137,2]
[313164197,1706842256906,-4684.64,0.0003062,2]
[313164198,1706842256918,-152.13,0.00030868,2]
[313164199,1706842256929,-1970.0,0.000311,2]
[313164200,1706842256940,-152.13,0.00031598,2]
[313164201,1706842256951,-180.0,0.00031644,2]
[313164202,1706842256963,-2335.96691728,0.000318,3]
[313164203,1706842256974,-152.13,0.00032329,2]
[313164204,1706842256985,-1000.0,0.000324,7]
[313164205,1706842256997,-804.82,0.00032746,2]
[313164206,1706842257009,-159.64574855,0.00032797,2]
[313164207,1706842257020,-8918.04954633,0.000328,2]
[313164208,1706842257038,-41995.89324118,0.000328,2]
[313164209,1706842257052,-3143.53793786,0.000328,2]
[313164218,1706842707177,159.23,0.00020496,2]
[313164219,1706842750595,545.65,0.00022414,2]
[313164220,1706842818516,155.46,0.0002248,2]
[313164221,1706842899418,153.68,0.00022465,2]
[313164222,1706842916219,150.0,0.00022,2]
[313164223,1706842997301,1759.79,0.00021861,2]
[313164224,1706843197613,151.26,0.00020317,2]
[313164225,1706843298017,155.0,0.00020317,2]
[313164226,1706843298713,155.31524812,0.00020317,2]
[313164227,1706843299241,155.0,0.00020317,2]
[313164228,1706843299737,155.0,0.00020607,2]
[313164229,1706843299913,161.31948018,0.00020317,2]
[313164230,1706843307077,155.0,0.00020317,2]
[313164231,1706843307244,170.2402816,0.00020317,2]
[313164232,1706843307949,184.42600338,0.00020317,2]
[313164233,1706843308318,155.0,0.00020317,2]
[313164234,1706843309178,155.0,0.00020317,2]
[313164235,1706843309985,162.65023805,0.00020607,2]
[313164236,1706843310463,171.06141843,0.00020317,2]
[313164237,1706843314731,155.0,0.00020317,2]
[313164238,1706843316001,155.0,0.00020317,2]
[313164239,1706843317239,156.075639,0.00020317,2]
[313164240,1706843319940,155.0,0.00020607,2]
[313164247,1706843323059,362.22772425,0.00020317,2]
[313164248,1706843328724,155.0,0.00020317,2]
[313164249,1706843330303,155.0,0.00020607,2]
[313164250,1706843333074,155.0,0.00020607,2]
[313164251,1706843335176,155.0,0.00020607,2]
[313164252,1706843336010,156.71766194,0.00020607,2]
[313164253,1706843339730,156.89159203,0.00020607,2]
[313164254,1706843341055,157.46685876,0.00020607,2]
[313164258,1706843346300,156.8303386,0.00020607,2]
[313164259,1706843347078,156.63721458,0.00020607,2]
[313164260,1706843355180,166.33813551,0.00020607,2]
[313164261,1706843362961,150.0,0.00022,2]
[313164267,1706843396371,150.0,0.00022005,2]
[313164268,1706843405491,159.58476514,0.00021983,2]
[313164269,1706843412503,686.67353612,0.00022433,2]
[313164270,1706843417511,686.67353611,0.00022458,2]
[313164271,1706843422537,686.67353611,0.00022482,2]
[313164272,1706843431533,151.09425827,0.00022,2]
[313164282,1706843432054,-686.67353611,0.00022507,2]
[313164283,1706843432064,-155.0,0.00022526,2]
[313164284,1706843432074,-420.65248789,0.00022527,2]
[313164285,1706843432083,-171.96197771,0.00022528,2]
[313164286,1706843432093,-150.0,0.00022532,2]
[313164287,1706843432103,-35527.52245156,0.00022533,2]
[313164288,1706843432112,-1805.56164,0.00022533,2]
[313164289,1706843432121,-1805.56164,0.00022533,2]
[313164290,1706843432130,-1805.56164,0.00022533,2]
[313164291,1706843432140,-1805.56164,0.00022533,2]
[313164292,1706843432149,-1805.56164,0.00022533,2]
[313164293,1706843432159,-153.30214944,0.00022548,2]
[313164294,1706843432168,-151.26,0.00022581,2]
[313164295,1706843432177,-299.99,0.00022675,7]
[313164296,1706843432186,-169.3084368,0.00022675,2]
[313164297,1706843432195,-169.3084368,0.00022675,2]
[313164298,1706843432204,-4534.36965629,0.00022693,2]
[313164299,1706843432214,-837.8,0.00022694,2]
[313164300,1706843432223,-2807.0421,0.00022694,2]
[313164301,1706843432233,-10241.959,0.00022799,2]
[313164302,1706843432242,-1000.0,0.00022799,2]
[313164303,1706843432250,-171.496,0.00022799,2]
[313164304,1706843432259,-150.99,0.00022799,2]
[313164305,1706843432268,-1000.0,0.00022897,2]
[313164306,1706843432277,-1043.4161,0.00022897,2]
[313164307,1706843432286,-278.09,0.00022897,2]
[313164308,1706843432295,-499.99,0.00022897,2]
[313164309,1706843432304,-155.26191098,0.00022897,2]
[313164310,1706843432314,-155.56058626,0.00022897,2]
[313164311,1706843432323,-155.60157596,0.00022897,2]
[313164312,1706843432332,-155.41172333,0.00022897,2]
[313164313,1706843432341,-155.48847366,0.00022897,2]
[313164314,1706843432351,-155.15622769,0.00022897,2]
[313164315,1706843432360,-155.59425987,0.00022897,2]
[313164316,1706843432369,-155.24199213,0.00022897,2]
[313164317,1706843432378,-603.16153331,0.00022898,2]
[313164318,1706843432388,-182.4323604,0.00022898,2]
[313164319,1706843432398,-75533.43214959,0.00022899,2]
[313164320,1706843432414,-917.82255189,0.00022899,2]
[313164321,1706843432426,-391.73008624,0.00022899,2]
[313164322,1706843432436,-3271.91470954,0.00022899,2]
[313164323,1706843432448,-814.15995737,0.00022899,2]
[313164324,1706843432459,-528.87484806,0.00022899,2]
[313164325,1706843432475,-18449.19894435,0.00022899,2]
[313164326,1706843432486,-19125.1944555,0.00022899,2]
[313164328,1706843438149,-421.78588728,0.00022531,2]
[313164329,1706843438161,-264.88764883,0.00022531,2]
[313164330,1706843438171,-686.67353611,0.00022556,2]
[313164331,1706843438180,-111.91727912,0.00022899,2]
[313164332,1706843438192,-971.933,0.00022899,2]
[313164333,1706843438204,-8126.56591594,0.00022899,2]
[313164334,1706843438213,-182.4323604,0.00022899,2]
[313164335,1706843438222,-1000.0,0.00022899,2]
[313164336,1706843438231,-1000.0,0.00022899,2]
[313164337,1706843438240,-1000.0,0.00022899,2]
[313164338,1706843438250,-1000.0,0.00022899,2]
[313164339,1706843438258,-1134.1371,0.000229,2]
[313164340,1706843438266,-9159.62,0.000229,2]
[313164341,1706843438275,-3309.44,0.000229,2]
[313164342,1706843438285,-30.39431087,0.000229,2]
[313164343,1706843438297,-130.13473664,0.000229,2]
[313164344,1706843438307,-182.42731572,0.000229,4]